bitfinex/quotes_ETHUSD_20250112
["timestamp","ask_amount","ask_price","bid_price","bid_amount"]
[1736667863763,0.00829295,3273.3,3273.1,1.04787072]
[1736667863991,0.8222,3273.6,3273.1,1.04787072]
[1736667864183,0.00845331,3273.2,3273.0,0.8238]
[1736667864376,0.27193674,3273.5,3273.0,0.8238]
[1736667866098,0.31012306,3273.5,3273.0,0.8238]
[1736667866299,0.27193674,3273.5,3273.0,0.8238]
[1736667867302,0.00800797,3273.4,3273.0,0.8238]
[1736667867520,0.00800797,3273.4,3271.3,0.68688517]
[1736667867521,0.25,3271.6,3271.3,0.68688517]
[1736667867700,4.14562747,3271.4,3271.3,0.68688517]
[1736667868001,2.93582,3271.3,3271.2,0.54621678]
[1736667868203,2.97404305,3271.3,3271.2,0.54621678]
[1736667868421,2.14041,3270.5,3269.7,1.20987747]
[1736667868580,0.25922652,3270.4,3269.7,1.20987747]
[1736667868779,0.221,3270.3,3269.7,1.20987747]
[1736667869190,2.14054,3270.2,3269.1,10.16276098]
[1736667869422,0.03822826,3270.1,3269.2,3.79551263]
[1736667869589,0.03822826,3270.1,3269.3,0.015]
[1736667872617,0.03822826,3270.1,3269.3,5.295]
[1736667872921,0.03822826,3270.1,3269.5,2.56510553]
[1736667873226,0.03822826,3270.2,3269.5,2.56510553]
[1736667876529,2.14074,3269.9,3269.3,5.28]
[1736667876701,0.09964201,3269.8,3269.1,0.0075]
[1736667877030,0.10526013,3269.8,3269.1,0.0075]
[1736667877612,0.06702917,3269.8,3269.1,0.0075]
[1736667880935,0.06702917,3269.8,3269.1,5.2875]
[1736667885418,0.221,3269.7,3269.1,5.2875]
[1736667885622,0.03823096,3270.0,3269.1,7.16689855]
[1736667885844,0.00537407,3269.6,3269.3,2.56510553]
[1736667886004,0.221,3269.9,3269.3,2.56510553]
[1736667886203,0.00551824,3269.5,3269.3,2.56510553]
[1736667886405,0.221,3269.9,3269.3,2.56510553]
[1736667886606,0.00563477,3269.4,3269.3,2.56510553]
[1736667886918,0.221,3269.9,3269.3,2.56510553]
[1736667887156,0.00520737,3269.8,3269.3,2.56510553]
[1736667887707,0.221,3269.9,3269.3,2.56510553]
[1736667887907,0.00526818,3269.8,3269.3,2.56510553]
[1736667888651,0.00526818,3269.8,3269.2,0.01839485]
[1736667888951,0.00526818,3269.8,3269.1,5.2875]
[1736667890415,0.06123461,3269.7,3269.1,5.2875]
[1736667890647,0.25923057,3269.9,3269.1,5.2875]
[1736667891049,0.00520739,3269.8,3269.1,5.2875]
[1736667891426,0.25923057,3269.9,3269.1,5.2875]
[1736667891628,0.00516231,3269.7,3269.1,5.2875]
[1736667891955,0.28258836,3269.7,3269.1,5.2875]
[1736667892130,0.28258836,3269.7,3269.4,2.56510553]
[1736667892450,0.28258836,3269.7,3269.6,2.56510553]
[1736667892817,0.28258836,3269.7,3269.6,7.84510553]
[1736667893697,0.45257874,3270.3,3269.6,7.84510553]
[1736667893853,0.03822645,3270.2,3269.6,7.84510553]
[1736667894197,0.10053416,3270.2,3269.6,7.84510553]
[1736667895000,0.73613671,3270.1,3269.6,7.84510553]
[1736667895296,0.73613671,3270.1,3269.6,5.28]
[1736667896556,0.19064743,3270.0,3269.6,5.28]
[1736667896882,0.92678414,3270.0,3269.6,5.28]
[1736667897772,0.19064743,3269.9,3269.6,5.28]
[1736667898871,0.19064743,3269.8,3269.6,5.28]
[1736667900511,0.19064743,3269.7,3269.6,5.28]
[1736667903490,1.08232832,3270.2,3269.6,5.28]
[1736667903885,0.060471,3270.1,3269.6,5.28]
[1736667904227,1.08232832,3270.2,3269.6,5.28]
[1736667904515,0.06038477,3270.0,3269.6,5.28]
[1736667904676,0.06041844,3270.1,3269.6,5.28]
[1736667904878,1.08232832,3270.2,3269.4,7.42104]
[1736667905420,0.06041844,3270.1,3269.4,7.42104]
[1736667905620,1.08232832,3270.2,3269.4,7.42104]
[1736667905772,0.06037282,3270.0,3269.5,2.14098]
[1736667905971,1.40460815,3270.2,3269.5,2.14098]
[1736667906218,0.06033915,3269.9,3269.5,2.14098]
[1736667906372,1.40460815,3270.2,3269.5,2.14098]
[1736667906576,0.06030547,3269.8,3269.5,2.14098]
[1736667906807,0.228,3270.1,3269.5,2.14098]
[1736667907514,0.228,3270.1,3269.5,2.15936947]
[1736667908093,0.228,3270.1,3269.5,2.14098]
[1736667909179,0.228,3270.1,3269.5,2.15936894]
[1736667909818,1.18360783,3270.2,3269.5,2.14098]
[1736667909983,0.06029024,3270.0,3269.5,2.14098]
[1736667910179,0.0985507,3270.1,3269.5,2.14098]
[1736667910379,0.06025656,3269.9,3269.5,2.14098]
[1736667910581,0.03822678,3270.1,3269.5,2.14098]
[1736667910780,0.06026284,3269.8,3269.5,2.14098]
[1736667910979,0.03822678,3270.1,3269.5,2.14098]
[1736667911182,0.0602169,3269.7,3269.5,2.14098]
[1736667911421,1.0511,3270.2,3269.6,2.14093]
[1736667912035,0.8231,3270.2,3269.6,2.14093]
[1736667912231,1.0511,3270.2,3269.6,2.14093]
[1736667914808,0.06037497,3270.1,3269.6,2.14093]
[1736667915438,0.28837497,3270.1,3269.6,2.14093]
[1736667915741,0.28837497,3270.1,3269.6,2.97143]
[1736667920131,0.06037497,3270.1,3269.6,2.97143]
[1736667920331,0.28837497,3270.1,3269.6,2.97143]
[1736667921039,0.06037497,3270.1,3269.6,2.97143]
[1736667921243,0.28837497,3270.1,3269.6,2.97143]
[1736667922858,0.28837497,3270.1,3269.6,0.8305]
[1736667923342,0.28837497,3270.1,3269.6,1.21411427]
[1736667923934,0.28837497,3270.1,3269.4,8.21893]
[1736667925845,0.06037497,3270.1,3269.6,3.35504427]
[1736667926143,0.228,3270.0,3269.8,1.21411427]
[1736667926453,0.06033278,3269.9,3269.8,1.21411427]
[1736667931865,0.06033278,3269.9,3269.6,2.14093]
[1736667933744,0.06033278,3269.9,3269.8,1.21411427]
[1736667933949,0.06033278,3269.9,3269.8,3.3732989]
[1736667934121,1.27384953,3270.2,3269.8,1.21411427]
[1736667934325,1.27384953,3270.2,3270.0,1.21411427]
[1736667934641,0.8129,3270.3,3270.0,1.21411427]
[1736667935519,0.05865241,3270.2,3270.0,1.21411427]
[1736667935908,1.0369,3270.3,3270.0,1.21411427]
[1736667936424,0.05870495,3270.2,3270.0,1.21411427]
[1736667936616,1.0369,3270.3,3270.0,1.21411427]
[1736667936823,0.05867128,3270.1,3270.0,1.21411427]
[1736667937011,0.8129,3270.3,3270.0,1.21411427]
[1736667937213,0.05850786,3270.1,3270.0,1.21411427]
[1736667937411,0.85112466,3270.3,3270.0,1.21411427]
[1736667937610,0.05853242,3270.1,3270.0,1.21411427]
[1736667937839,0.03822466,3270.3,3270.0,1.21411427]
[1736667938033,0.05853242,3270.1,3270.0,1.21411427]
[1736667938234,0.26222465,3270.4,3270.0,1.21411427]
[1736667938484,0.05853242,3270.1,3270.0,1.21411427]
[1736667938755,0.26222465,3270.4,3270.0,1.21411427]
[1736667938927,0.05853242,3270.1,3270.0,1.21411427]
[1736667939411,0.26222465,3270.4,3270.0,1.21411427]
[1736667939607,0.05855577,3270.1,3270.0,1.21411427]
[1736667939813,0.26222465,3270.4,3270.0,1.21411427]
[1736667940147,0.0585613,3270.1,3270.0,0.7666]
[1736667940351,0.224,3270.4,3270.0,0.7666]
[1736667941612,2.08674953,3270.7,3270.1,1.21411427]
[1736667941819,0.224,3270.6,3270.1,1.21411427]
[1736667942728,0.05867876,3270.5,3270.3,1.21411427]
[1736667942927,0.28267876,3270.5,3270.3,1.21411427]
[1736667943827,0.05867876,3270.5,3270.3,1.21411427]
[1736667944219,0.05867876,3270.5,3270.3,3.35458427]
[1736667945927,0.224,3270.7,3270.3,3.35458427]
[1736667946163,0.224,3270.7,3270.6,1.21411427]
[1736667946541,2.08674953,3271.0,3270.6,1.21411427]
[1736667946542,0.224,3270.8,3270.6,1.21411427]
[1736667947570,0.39975238,3270.9,3270.6,1.21411427]
[1736667947754,0.224,3270.8,3270.6,1.21411427]
[1736667949855,0.05887117,3270.7,3270.6,1.21411427]
[1736667951556,0.224,3270.8,3270.6,1.21411427]
[1736667951855,0.05887117,3270.7,3270.6,1.21411427]
[1736667954184,0.05887117,3270.7,3270.6,9.44359427]
[1736667954367,0.06658239,3270.7,3270.6,10.3879537]
[1736667954705,1.27384953,3271.2,3270.8,2.14014]
[1736667954841,1.27384953,3271.2,3271.1,1.21411427]
[1736667955585,0.224,3271.3,3271.1,1.21411427]
[1736667956882,0.224,3271.2,3271.1,1.21411427]
[1736667957043,0.28163243,3271.2,3271.1,1.21411427]
[1736667958045,0.224,3271.2,3271.1,1.21411427]
[1736667960078,0.8069,3271.6,3271.1,1.21411427]
[1736667960286,0.05763243,3271.2,3271.1,2.00831427]
[1736667960586,0.223,3271.5,3271.1,2.00831427]
[1736667961083,0.05579747,3271.4,3271.1,2.00831427]
[1736667964287,0.05579747,3271.4,3271.1,1.21411427]
[1736667965600,0.27879747,3271.4,3271.1,1.21411427]
[1736667967571,0.223,3271.4,3271.1,1.21411427]
[1736667968903,0.05573382,3271.3,3270.9,1.96891427]
[1736667969063,0.223,3271.3,3270.9,1.96891427]
[1736667970376,0.8071,3271.2,3270.7,5.28]
[1736667970581,0.03821504,3271.1,3270.7,5.28]
[1736667970783,0.09387047,3271.1,3270.7,5.28]
[1736667973899,2.56020952,3271.1,3270.7,5.28]
[1736667974412,2.52199448,3271.1,3270.7,5.28]
[1736667974628,0.38203448,3271.1,3270.7,5.28]
[1736667974830,0.05565543,3271.1,3270.7,6.0348]
[1736667975132,0.223,3271.0,3270.7,6.0348]
[1736667975402,0.05533867,3270.9,3270.7,6.0348]
[1736667975707,0.223,3271.0,3270.7,6.0348]
[1736667976970,0.223,3271.0,3270.7,8.59859352]
[1736667977218,0.223,3271.0,3270.7,9.67247887]
[1736667979211,0.223,3271.2,3270.7,9.67247887]
[1736667979512,0.05158025,3271.1,3270.7,9.67247887]
[1736667979711,0.223,3271.2,3270.7,9.67247887]
[1736667979918,0.05158025,3271.1,3270.7,9.67247887]
[1736667980121,0.8071,3271.5,3270.8,0.69198605]
[1736667980412,0.05203038,3271.4,3271.0,4.70378352]
[1736667980588,0.05203038,3271.4,3271.1,0.7548]
[1736667983278,0.05203038,3271.4,3271.3,2.56379352]
[1736667983478,0.223,3271.8,3271.3,4.18778786]
[1736667983680,0.01251703,3271.7,3271.5,2.89447]
[1736667983913,1.49684953,3272.0,3271.5,2.89447]
[1736667984215,0.01220358,3271.9,3271.6,4.72174562]
[1736667984817,0.223,3272.1,3271.6,10.00174562]
[1736667984992,0.01251968,3271.8,3271.6,9.98340352]
[1736667985193,0.223,3272.1,3271.6,9.98340352]
[1736667985393,0.01263606,3271.7,3271.6,9.98340352]
[1736667985691,0.223,3272.1,3271.6,9.98340352]
[1736667985991,0.05230771,3272.0,3271.6,9.98340352]
[1736667987216,0.05230771,3272.0,3271.6,11.05722387]
[1736667987440,0.05230771,3272.0,3271.7,0.01833886]
[1736667987657,0.7775,3271.9,3271.6,5.28]
[1736667987954,2.91706,3271.7,3271.0,5.28]
[1736667988161,0.33493459,3271.6,3271.0,5.28]
[1736667988303,0.3473629,3271.6,3271.0,5.28]
[1736667989550,0.03976439,3271.5,3271.0,5.28]
[1736667992347,2.91731,3271.4,3270.7,0.7659]
[1736667992638,0.30020987,3271.3,3270.7,0.7659]
[1736667997205,0.2619957,3271.3,3270.7,0.7659]
[1736667998646,0.30020984,3271.3,3270.7,0.7659]
[1736668001757,0.2619957,3271.3,3270.7,0.78426124]
[1736668002147,0.01289401,3271.2,3270.7,0.78426124]
[1736668002343,0.0394242,3271.1,3270.7,0.78426124]
[1736668002554,0.223,3271.3,3270.7,0.78426124]
[1736668003658,0.26121413,3271.3,3270.7,0.7659]
[1736668004434,0.26121413,3271.3,3270.6,7.84379352]
[1736668005921,0.03957425,3271.2,3270.7,0.01836121]
[1736668006123,0.223,3271.3,3270.7,0.01836121]
[1736668006327,0.03957425,3271.2,3270.7,0.01836121]
[1736668006527,0.223,3271.3,3270.7,0.01836121]
[1736668006742,0.03957425,3271.2,3270.7,0.01836121]
[1736668006925,0.223,3271.3,3270.7,0.01836121]
[1736668007127,0.03957425,3271.2,3270.6,7.84379352]
[1736668007457,0.223,3271.3,3270.8,1.21329724]
[1736668007826,0.05211876,3271.2,3270.8,1.21329724]
[1736668008825,0.05211876,3271.2,3271.0,1.21329724]
[1736668009461,0.223,3271.5,3271.0,1.21329724]
[1736668009760,0.223,3271.5,3270.9,0.79256114]
[1736668010062,0.05219716,3271.4,3270.9,0.79256114]
[1736668010275,0.05219716,3271.4,3271.2,1.21329724]
[1736668011466,0.05219716,3271.4,3270.9,2.56994195]
[1736668011759,0.05219716,3271.4,3271.0,0.34426348]
[1736668015558,0.7635,3271.3,3270.9,7.84244195]
[1736668016171,0.01306322,3271.2,3270.9,7.84244195]
[1736668016682,0.7635,3271.3,3270.9,7.84244195]
[1736668016967,0.05216907,3271.2,3270.9,7.84244195]
[1736668017172,0.7635,3271.3,3270.9,7.84244195]
[1736668017975,0.05216907,3271.2,3270.9,7.84244195]
[1736668018586,0.7635,3271.3,3270.9,7.84244195]
[1736668020259,0.7635,3271.3,3270.9,9.14145015]
[1736668020635,0.05200299,3271.2,3270.9,9.14145015]
[1736668020867,0.05200299,3271.2,3271.0,0.01835396]
[1736668021061,0.7635,3271.3,3271.0,0.01835396]
[1736668021374,0.04995922,3271.2,3271.0,0.01835396]
[1736668021773,0.7635,3271.3,3271.0,0.01835396]
[1736668021977,0.04995922,3271.2,3271.0,0.01835396]
[1736668022375,0.7635,3271.3,3271.0,0.01835396]
[1736668022577,0.04995922,3271.2,3271.0,0.01835396]
[1736668023061,0.7635,3271.3,3271.0,0.01835396]
[1736668023376,0.04993587,3271.2,3271.0,0.01835396]
[1736668023975,0.7635,3271.3,3271.0,0.01835396]
[1736668024772,0.7635,3271.3,3270.9,9.14145015]
[1736668026374,0.05004681,3271.2,3270.9,9.14145015]
[1736668026692,0.7635,3271.3,3270.9,9.14145015]
[1736668027791,0.7635,3271.3,3271.0,0.0183541]
[1736668029493,0.777,3271.5,3271.2,2.56244195]
[1736668029799,0.05002666,3271.4,3271.2,2.56244195]
[1736668033509,0.05002666,3271.4,3271.3,1.21288766]
[1736668034771,0.05002666,3271.4,3271.3,1.23123388]
[1736668035296,0.05002666,3271.4,3271.3,1.21288766]
[1736668035492,0.05002666,3271.4,3271.3,2.15613243]
[1736668035698,0.05002666,3271.4,3271.3,4.31429683]
[1736668035899,0.22,3271.9,3271.3,4.31429683]
[1736668036119,0.01028227,3271.8,3271.7,1.21288766]
[1736668037402,0.01043775,3271.8,3271.7,1.21288766]
[1736668037914,0.997,3272.1,3271.7,1.21288766]
[1736668038116,0.997,3272.1,3271.9,1.21288766]
[1736668038472,0.05063543,3272.0,3271.9,1.21288766]
[1736668044019,0.05063543,3272.0,3271.7,1.21288766]
[1736668055430,0.7807,3271.9,3271.6,5.28]
[1736668055592,0.03820715,3271.8,3271.6,5.28]
[1736668055791,0.05069215,3271.7,3271.6,5.28]
[1736668057628,0.05069215,3271.7,3271.3,1.21288766]
[1736668057928,0.01096537,3271.7,3271.3,1.21288766]
[1736668058131,0.03820715,3271.8,3271.3,1.21288766]
[1736668059008,2.92013,3271.9,3271.3,1.21288766]
[1736668059222,0.03820816,3271.8,3271.3,1.21288766]
[1736668060610,0.7807,3271.7,3271.3,1.21288766]
[1736668060807,0.03820983,3271.6,3271.3,1.21288766]
[1736668061114,0.7807,3271.5,3271.2,1.21288766]
[1736668061608,0.03927668,3271.4,3271.2,1.21288766]
[1736668061999,0.7807,3271.5,3271.2,1.21288766]
[1736668062226,0.05049684,3271.4,3271.2,1.21288766]
[1736668062638,0.7807,3271.5,3271.2,1.21288766]
[1736668063011,0.05049684,3271.4,3271.2,1.21288766]
[1736668063210,0.7807,3271.5,3271.2,1.21288766]
[1736668063417,0.05049684,3271.4,3271.2,1.21288766]
[1736668063912,0.7807,3271.5,3271.2,1.21288766]
[1736668064115,0.05049684,3271.4,3271.2,1.21288766]
[1736668064312,0.7807,3271.5,3271.2,1.21288766]
[1736668064556,0.05049684,3271.4,3271.2,1.21288766]
[1736668064756,0.7807,3271.5,3271.2,1.21288766]
[1736668064929,0.03927668,3271.4,3271.2,1.21288766]
[1736668065132,0.7807,3271.5,3271.2,1.21288766]
[1736668065455,0.05049684,3271.4,3271.2,1.21288766]
[1736668065819,0.7807,3271.5,3271.2,1.21288766]
[1736668066254,0.05049684,3271.4,3271.2,1.21288766]
[1736668066555,0.7807,3271.5,3271.2,1.21288766]
[1736668066754,0.05049684,3271.4,3271.2,1.21288766]
[1736668066942,0.7807,3271.5,3271.2,1.21288766]
[1736668067145,0.7807,3271.5,3271.4,1.21288766]
[1736668068763,0.82012672,3271.5,3271.4,1.21288766]
[1736668069118,0.03942672,3271.5,3271.4,1.21288766]
[1736668069323,0.7694,3271.8,3271.4,1.21288766]
[1736668069522,0.03972678,3271.7,3271.4,1.21288766]
[1736668069756,0.216,3271.6,3271.4,1.21288766]
[1736668069922,0.03942672,3271.5,3271.4,1.21288766]
[1736668070125,0.216,3271.6,3271.4,1.21288766]
[1736668072563,0.05053048,3271.5,3271.4,1.21288766]
[1736668075373,0.216,3271.6,3271.4,1.21288766]
[1736668075673,0.05055382,3271.5,3271.4,1.21288766]
[1736668076835,0.05055382,3271.5,3271.4,2.01978766]
[1736668077238,0.216,3271.7,3271.4,2.01978766]
[1736668077569,0.01091777,3271.6,3271.4,2.01978766]
[1736668077770,0.216,3271.7,3271.4,2.01978766]
[1736668077970,0.01091777,3271.6,3271.4,2.01978766]
[1736668078175,0.216,3271.7,3271.4,2.01978766]
[1736668078333,0.01091777,3271.6,3271.4,2.01978766]
[1736668078674,0.216,3271.7,3271.4,2.01978766]
[1736668078970,0.01093443,3271.6,3271.4,2.01978766]
[1736668079170,0.216,3271.7,3271.4,2.01978766]
[1736668079385,0.01093443,3271.6,3271.4,2.01978766]
[1736668079581,0.216,3271.7,3271.4,4.15953766]
[1736668079733,0.05061523,3271.6,3271.4,2.01978766]
[1736668079929,0.216,3271.7,3271.4,2.01978766]
[1736668080128,0.05061523,3271.6,3271.4,2.01978766]
[1736668080352,0.216,3271.7,3271.4,2.01978766]
[1736668080628,0.05061523,3271.6,3271.4,2.01978766]
[1736668081034,0.216,3271.7,3271.4,2.01978766]
[1736668081476,0.04878791,3271.6,3271.4,2.01978766]
[1736668081842,0.213,3271.7,3271.4,2.01978766]
[1736668082376,0.04878791,3271.6,3271.4,2.01978766]
[1736668082576,0.213,3271.7,3271.4,2.01978766]
[1736668082889,0.04878791,3271.6,3271.4,2.01978766]
[1736668083264,0.213,3271.7,3271.4,2.01978766]
[1736668083577,0.04878791,3271.6,3271.4,2.01978766]
[1736668083780,0.213,3271.7,3271.4,2.01978766]
[1736668084075,0.04878791,3271.6,3271.4,2.01978766]
[1736668084453,0.213,3271.7,3271.4,2.01978766]
[1736668084774,0.0396808,3271.6,3271.4,2.01978766]
[1736668084943,0.213,3271.7,3271.4,2.01978766]
[1736668085282,0.04878791,3271.6,3271.4,2.01978766]
[1736668085606,0.213,3271.7,3271.4,2.01978766]
[1736668085902,0.04878791,3271.6,3271.4,2.01978766]
[1736668086203,0.0396808,3271.6,3271.4,2.01978766]
[1736668088801,0.07788776,3271.6,3271.1,5.28]
[1736668089012,0.82097093,3271.5,3271.1,5.28]
[1736668089180,0.03821178,3271.4,3271.1,5.28]
[1736668090790,0.03951666,3271.3,3271.1,5.28]
[1736668091165,0.7668,3271.2,3270.7,1.21288766]
[1736668091367,0.03921656,3271.1,3270.7,1.21288766]
[1736668092263,0.00956142,3271.0,3270.7,1.21288766]
[1736668094516,0.03891641,3270.9,3270.6,0.7908]
[1736668094816,0.7668,3271.2,3270.8,1.21288766]
[1736668096242,2.1793608,3271.6,3271.0,1.21288766]
[1736668096519,0.7668,3271.5,3271.0,1.21288766]
[1736668097319,0.0396808,3271.6,3271.2,1.21288766]
[1736668097485,0.213,3271.4,3271.2,1.21288766]
[1736668098077,0.03910041,3271.3,3271.2,1.21288766]
[1736668103435,0.213,3271.4,3271.2,1.21288766]
[1736668103621,0.0396808,3271.6,3271.2,1.21288766]
[1736668103943,0.26155942,3271.5,3271.2,1.21288766]
[1736668105335,0.26155942,3271.5,3271.4,1.21288766]
[1736668105536,0.04855942,3271.5,3271.4,1.21288766]
[1736668107219,0.04855942,3271.5,3271.4,1.54999697]
[1736668108650,0.0396808,3271.6,3271.4,1.54999697]
[1736668108850,0.0396808,3271.6,3271.4,1.21288766]
[1736668109015,0.04847717,3271.5,3271.4,1.21288766]
[1736668110317,0.0396808,3271.6,3271.4,1.21288766]
[1736668110544,0.04847717,3271.5,3271.4,1.21288766]
[1736668117035,0.0396808,3271.6,3271.4,1.21288766]
[1736668117354,0.00799195,3271.5,3271.4,1.21288766]
[1736668117937,0.0396808,3271.6,3271.4,1.21288766]
[1736668122766,0.04768345,3271.5,3271.4,1.21288766]
[1736668134643,0.0396808,3271.6,3271.4,1.21288766]
[1736668135375,0.0396808,3271.6,3271.5,0.77594682]
[1736668137275,0.0396808,3271.6,3271.5,2.91563682]
[1736668141417,0.0396808,3271.6,3271.5,8.19563682]
[1736668141573,0.0396808,3271.6,3271.5,8.17729]
[1736668149517,0.0396808,3271.6,3271.5,6.0376]
[1736668149703,0.0396808,3271.6,3271.5,5.28]
[1736668150108,0.08742502,3271.6,3271.5,5.28]
[1736668153913,0.0396808,3271.6,3271.5,5.28]
[1736668159000,0.0396808,3271.6,3271.5,5.69962437]
[1736668159202,0.0396808,3271.6,3271.5,8.58357119]
[1736668163432,0.0396808,3271.6,3271.5,8.60607119]
[1736668177883,0.0396808,3271.6,3271.5,8.61357119]
[1736668184919,0.0396808,3271.6,3271.5,11.61357119]
[1736668188621,0.0396808,3271.6,3271.5,12.42667119]
[1736668192209,0.0396808,3271.6,3271.5,21.22667119]
[1736668192587,0.0396808,3271.6,3271.5,22.43955885]
[1736668192971,0.0396808,3271.6,3271.5,21.22667119]
[1736668202829,0.0396808,3271.6,3271.5,22.43955885]
[1736668204995,0.0396808,3271.6,3271.5,21.62645885]
[1736668205606,0.0396808,3271.6,3271.5,20.41357119]
[1736668206442,0.0396808,3271.6,3271.5,21.62645885]
[1736668227965,0.8331,3272.6,3272.5,2.13903]
[1736668228165,0.8331,3272.6,3272.5,3.58082066]
[1736668228364,0.88077528,3272.6,3272.5,3.58082066]
[1736668228622,0.8331,3272.6,3272.5,3.58082066]
[1736668228921,0.8331,3272.6,3272.5,3.36691766]
[1736668229582,0.8331,3272.6,3272.5,6.38191766]
[1736668229933,0.7761,3273.2,3272.8,2.13883]
[1736668230085,0.7761,3273.2,3273.1,1.21288766]
[1736668232327,0.7761,3273.2,3273.1,3.35152766]
[1736668232570,0.7761,3273.2,3273.1,4.33780023]
[1736668232894,0.7761,3273.2,3273.1,3.36652766]
[1736668237081,0.7761,3273.2,3273.1,8.64652766]
[1736668243337,0.7746,3273.8,3273.1,8.64652766]
[1736668243630,0.7746,3273.8,3273.6,1.21288766]
[1736668243978,0.08580385,3273.7,3273.6,1.21288766]
[1736668244326,0.86040385,3273.7,3273.6,1.21288766]
[1736668249031,0.86040385,3273.7,3273.4,1.21288766]
[1736668255011,0.03818392,3273.6,3273.1,5.28]
[1736668255231,0.7795,3273.5,3273.1,5.28]
[1736668255589,0.86604395,3273.4,3273.1,5.28]
[1736668257037,0.0381864,3273.3,3273.1,5.28]
[1736668257333,0.8312593,3273.2,3273.1,5.28]
[1736668259033,0.86597909,3273.2,3273.1,5.28]
[1736668261011,0.86597909,3273.2,3272.7,6.49288766]
[1736668261334,0.7795,3273.2,3272.7,6.49288766]
[1736668261850,0.24518964,3273.1,3272.7,5.28]
[1736668262052,0.7795,3273.0,3272.3,6.49288766]
[1736668262249,0.7795,3272.8,3272.3,5.28]
[1736668262549,0.7795,3272.6,3272.3,5.28]
[1736668262735,0.03367053,3272.5,3272.3,5.28]
[1736668262937,0.7795,3272.4,3272.3,5.28]
[1736668263735,0.86518095,3272.4,3272.3,5.28]
[1736668266311,0.7795,3272.4,3272.3,6.49288766]
[1736668267053,0.7795,3272.4,3272.3,1.21288766]
[1736668272091,0.7795,3272.4,3272.1,1.21288766]
[1736668274811,0.08528374,3272.3,3271.9,6.49288766]
[1736668275104,0.7898,3272.2,3271.9,6.49288766]
[1736668280109,0.7898,3272.0,3271.6,5.28]
[1736668280310,0.03820521,3271.9,3271.6,5.28]
[1736668280531,0.7898,3271.8,3271.6,5.28]
[1736668283266,0.01450136,3271.7,3271.6,5.28]
[1736668283665,0.7898,3271.8,3271.6,5.28]
[1736668284115,0.08175561,3271.7,3271.6,5.28]
[1736668284541,0.7898,3271.8,3271.6,5.28]
[1736668284835,0.08175561,3271.7,3271.6,5.28]
[1736668285000,0.08175561,3271.7,3271.3,1.21288766]
[1736668285202,0.7898,3271.8,3271.3,1.21288766]
[1736668285622,0.08141667,3271.7,3271.3,1.21288766]
[1736668286004,0.7898,3271.8,3271.3,1.21288766]
[1736668286422,0.08141667,3271.7,3271.3,1.21288766]
[1736668286920,0.7898,3271.8,3271.3,1.21288766]
[1736668287426,0.08141667,3271.7,3271.3,1.21288766]
[1736668287785,0.7898,3271.8,3271.3,1.21288766]
[1736668288144,0.01431808,3271.7,3271.3,1.21288766]
[1736668288331,0.7898,3271.8,3271.3,1.6725265]
[1736668288657,0.08141667,3271.7,3271.3,1.6725265]
[1736668289154,0.7898,3271.8,3271.3,1.6725265]
[1736668289365,0.01431808,3271.7,3271.3,1.6725265]
[1736668289527,0.08141667,3271.7,3271.3,1.6725265]
[1736668289712,0.7898,3271.8,3271.3,1.6725265]
[1736668290181,0.01431808,3271.7,3271.3,1.6725265]
[1736668290358,0.7898,3271.8,3271.3,1.6725265]
[1736668290856,0.08141667,3271.7,3271.5,1.21288766]
[1736668291011,0.08141667,3271.7,3271.6,1.21288766]
[1736668291209,0.207,3272.1,3271.6,1.21288766]
[1736668291408,0.207,3272.1,3271.9,1.21288766]
[1736668291915,0.08124186,3272.0,3271.9,1.21288766]
[1736668292454,0.08124186,3272.0,3271.7,1.21288766]
[1736668292861,0.207,3272.1,3271.7,1.21288766]
[1736668293660,0.207,3272.0,3271.7,1.21288766]
[1736668296569,0.207,3272.0,3271.9,1.21288766]
[1736668297334,0.28830941,3272.0,3271.9,1.21288766]
[1736668305036,0.08130941,3272.0,3271.9,1.21288766]
[1736668316207,0.83730941,3272.0,3271.9,1.21288766]
[1736668319469,0.83730941,3272.0,3271.5,5.28]
[1736668319813,0.756,3272.0,3271.7,1.21288766]
[1736668321615,0.963,3272.0,3271.7,1.21288766]
[1736668325320,0.963,3272.0,3271.5,5.28]
[1736668325518,0.85820408,3271.9,3271.5,5.28]
[1736668325733,0.93975317,3271.9,3271.5,5.28]
[1736668325868,0.85820408,3271.9,3271.5,5.28]
[1736668326417,0.08156664,3271.8,3271.5,5.28]
[1736668327096,0.08156664,3271.8,3271.4,1.21288766]
[1736668327298,0.82,3271.7,3271.4,1.21288766]
[1736668327516,0.03820749,3271.6,3271.3,5.28]
[1736668328071,0.82,3271.5,3271.1,6.49288766]
[1736668328765,0.08147058,3271.4,3271.1,6.49288766]
[1736668329002,0.82,3271.5,3271.1,6.49288766]
[1736668329202,0.06716028,3271.4,3271.1,6.49288766]
[1736668329652,0.82,3271.5,3271.1,6.49288766]
[1736668330041,0.06718066,3271.4,3271.1,6.49288766]
[1736668330362,0.82,3271.5,3271.1,5.28]
[1736668330662,0.03820925,3271.4,3271.1,1.21288766]
[1736668330810,0.82,3271.5,3271.1,1.21288766]
[1736668331010,0.06716222,3271.4,3271.1,1.21288766]
[1736668331210,0.82,3271.5,3271.1,1.21288766]
[1736668331411,0.10537424,3271.4,3271.1,1.21288766]
[1736668331644,0.03821202,3271.4,3271.1,1.21288766]
[1736668332246,0.03821202,3271.4,3270.9,6.49288766]
[1736668332247,0.82,3271.3,3270.9,6.49288766]
[1736668332568,0.24521422,3271.2,3270.9,5.28]
[1736668333176,0.24521422,3271.2,3270.9,6.49288766]
[1736668336047,0.24521422,3271.2,3270.9,1.21288766]
[1736668336827,0.24521422,3271.2,3270.6,8.0473417]
[1736668337044,0.24521422,3271.2,3270.6,9.23032587]
[1736668337248,0.24521422,3271.2,3270.9,1.21288766]
[1736668338318,0.03821422,3271.2,3270.9,1.21288766]
[1736668338455,0.207,3271.1,3270.9,1.21288766]
[1736668342004,2.94954,3271.6,3270.9,2.00408766]
[1736668342301,0.58298409,3271.5,3271.1,1.21288766]
[1736668342455,0.28803009,3271.5,3271.1,1.21288766]
[1736668347405,0.28803009,3271.5,3271.1,1.98528766]
[1736668347900,0.28803009,3271.5,3271.1,1.21288766]
[1736668351824,0.08103009,3271.5,3271.2,0.7724]
[1736668351976,0.207,3271.4,3271.2,0.7724]
[1736668352330,0.08083476,3271.3,3271.2,0.7724]